Cogmind - Beta 17.1 @@@ ROGUE MODE // 2026.09.05 @ 23:19:17 Player: Xcalibur Result: Destroyed by H-81 Overseer with Heavy Linear Accelerator Performance ------------- Evolutions (8) 4000 Regions Visited (14) 2800 Robots Destroyed (2) 10 Value Destroyed (12) 12 Prototype IDs (1) 20 Alien Tech Used (0) 0 Bonus (1670) 1670 TOTAL SCORE: 8512 Bonus ------- Pacifist 470 Entered Garrisons 200 Entered DSFs 1000 Cogmind --------- Core Integrity 0/1450 Matter 298/300 Energy 98/100 System Corruption 6% Temperature Cool (0) Movement Core (50) Location -2/Research Parts ------- > --- POWER (1) -------- (None) > --- PROPULSION (12) -- (None) > --- UTILITY (8) ------ Advanced Terrain Scan Processor > --- WEAPON (2) ------- (None) > --- INVENTORY (5) ---- Heavy Assault Rifle Peak State ------------ > --- POWER ------------ (None) > --- PROPULSION ------- Medium Armored Exoskeleton Medium Armored Exoskeleton Medium Armored Exoskeleton Medium Armored Exoskeleton > --- UTILITY ---------- Advanced Signal Interpreter Terrain Scan Processor Advanced Terrain Scan Processor > --- WEAPON ----------- (None) > --- INVENTORY -------- Heavy Assault Rifle [Rating: 83] Favorites ----------- Power Backup Power I Engine Backup Power I Propulsion Medium Armored Exoskeleton Treads Improved Treads Leg Medium Armored Exoskeleton Hover Unit Backup Propulsion I Utility Terrain Scan Processor Device Structural Scanner Processor Terrain Scan Processor Weapon Backup Laser I Energy Gun Backup Laser I Ballistic Gun Heavy Assault Rifle Build | -11 -10 -9 -8 -7 -7 -6 -5 -5 -5 -4 -4 -4 -3 -2 ------- Run | Yrd Mat Mat Mat Fac DSF Fac Fac DSF Gar Fac Was Fac Res Res Slots Evolved 16 | . . 2 2 2 . 2 2 . . 2 . . 2 2 Power . | . . . . . . . . . . . . . . . Propulsion 10 | . . 1 1 2 . 1 1 . . . . . 2 2 Utility 6 | . . 1 1 . . 1 1 . . 2 . . . . Weapon . | . . . . . . . . . . . . . . . Parts Attached 21 | . . 1 4 . . 6 . 1 . 1 3 . 1 4 Power . | . . . . . . . . . . . . . . . Engine . | . . . . . . . . . . . . . . . Core . | . . . . . . . . . . . . . . . Reactor . | . . . . . . . . . . . . . . . Propulsion 14 | . . 1 1 . . 4 . 1 . . 3 . . 4 Treads 5 | . . 1 1 . . . . . . . 3 . . . Leg 9 | . . . . . . 4 . 1 . . . . . 4 Wheel . | . . . . . . . . . . . . . . . Hover . | . . . . . . . . . . . . . . . Flight . | . . . . . . . . . . . . . . . Utility 6 | . . . 2 . . 2 . . . 1 . . 1 . Device 3 | . . . 1 . . 1 . . . . . . 1 . Storage . | . . . . . . . . . . . . . . . Processor 3 | . . . 1 . . 1 . . . 1 . . . . Hackware . | . . . . . . . . . . . . . . . Protection . | . . . . . . . . . . . . . . . Artifact . | . . . . . . . . . . . . . . . Weapon 1 | . . . 1 . . . . . . . . . . . Energy Gun . | . . . . . . . . . . . . . . . Energy Cannon . | . . . . . . . . . . . . . . . Ballistic Gun 1 | . . . 1 . . . . . . . . . . . Ballistic Cannon . | . . . . . . . . . . . . . . . Launcher . | . . . . . . . . . . . . . . . Special Weapon . | . . . . . . . . . . . . . . . Impact Weapon . | . . . . . . . . . . . . . . . Slashing Weapon . | . . . . . . . . . . . . . . . Piercing Weapon . | . . . . . . . . . . . . . . . Special Melee Weapon . | . . . . . . . . . . . . . . . Unidentified Prototypes 1 | . . . . . . . . . . . 1 . . . Parts Lost 23 | . . . . . . 2 . 5 . 1 4 4 . 7 Power 1 | . . . . . . . . . . . 1 . . . Propulsion 15 | . . . . . . 2 . 3 . 1 3 2 . 4 Utility 5 | . . . . . . . . 2 . . . . . 3 Weapon 2 | . . . . . . . . . . . . 2 . . Highest Loss Streak 5 | . . . . . . 2 . 5 . 1 4 4 . 5 To Critical Strikes 2 | . . . . . . . . . . . 2 . . . Average Backups . | . . . . 1 1 1 1 1 1 1 1 1 1 1 Power . | . . . . . . . . . . . . . . . Propulsion . | . . . . . . . . . . . . . . . Utility . | . . . . . . . . . . . . . . . Weapon . | . . . . 1 1 1 1 1 1 1 1 1 1 1 Tool/Special . | . . . . . . . . . . . . . . . Unused Backups . | . . . . . . . . . . . . . . . Power . | . . . . . . . . . . . . . . . Propulsion . | . . . . . . . . . . . . . . . Utility . | . . . . . . . . . . . . . . . Weapon . | . . . . . . . . . . . . . . . Tool/Special . | . . . . . . . . . . . . . . . Average Slot Usage (%) 25 | . . 2 30 30 30 33 47 32 17 27 50 30 17 21 Treads 4 | . . 2 17 15 15 3 . . . . 10 3 . . Leg 5 | . . . . . . 9 23 13 5 1 . . . 10 Hover 1 | . . . . . . . . . . 5 10 4 . . Device 3 | . . . 3 7 7 8 11 6 . . . . 2 . Processor 9 | . . . 6 7 7 10 11 11 11 10 15 15 14 9 Energy Gun 1 | . . . . . . . . . . 5 10 7 . . Peak Build Rating 83 | . . 2 10 8 8 28 28 28 12 16 72 32 18 83 Average Rating 23 | . . . 7 8 8 15 28 18 12 11 56 23 17 56 On Entrance 12 | . . . 2 8 8 8 28 28 12 12 16 32 11 18 Avg Prop Armor Cover (%) 37 | . . 35 38 . 40 39 . 32 32 18 40 29 . 46 Naked Turns 83 | . 55 28 . . . . . . . . . . . . Heaviest Build 3 | . . . 3 1 1 2 2 2 . 3 3 2 3 3 Greatest Support 54 | 3 3 23 3 3 3 18 3 54 3 3 3 3 3 3 Greatest Overweight (x) . | . . . . . . . . . . . . . . . Average Overweight (x) . | . . . . . . . . . . . . . . . Largest Inventory Capacity 5 | 5 5 5 5 5 5 5 5 5 5 5 5 5 5 5 Average Capacity 5 | 5 5 5 5 5 5 5 5 5 5 5 5 5 5 5 Most Carried 1 | . . . 1 1 1 1 1 1 1 1 1 1 1 1 Average Carried . | . . . . 1 1 1 1 1 1 1 1 1 1 1 Final Capacity 5 | 5 5 5 5 5 5 5 5 5 5 5 5 5 5 5 Final Carried 1 | . . . 1 1 1 1 1 1 1 1 1 1 1 1 Class Distribution -------------------- 100% | Mutant Dominant Class ---------------- Mutant | -10/Materials Mutant | -9/Materials Mutant | -8/Materials Mutant | -7/Factory Mutant | -7/DSF Mutant | -6/Factory Mutant | -5/Factory Mutant | -5/DSF Mutant | -5/Garrison Mutant | -4/Factory Mutant | -4/Waste Mutant | -4/Factory Mutant | -3/Research Mutant | -2/Research Resources | -11 -10 -9 -8 -7 -7 -6 -5 -5 -5 -4 -4 -4 -3 -2 ----------- Run | Yrd Mat Mat Mat Fac DSF Fac Fac DSF Gar Fac Was Fac Res Res Matter Collected 206 | 95 . . 18 . . . . . . 16 . . . 77 Remotely . | . . . . . . . . . . . . . . . Salvage Created 18 | . . . 18 . . . . . . . . . . . Parts 5 | . . . 5 . . . . . . . . . . . Haulers Intercepted . | . . . . . . . . . . . . . . . Recyclers Shooed . | . . . . . . . . . . . . . . . Parts Field Recycled . | . . . . . . . . . . . . . . . Retrieved Matter . | . . . . . . . . . . . . . . . Parts Self-Destructed . | . . . . . . . . . . . . . . . Prevented . | . . . . . . . . . . . . . . . Parts Restored . | . . . . . . . . . . . . . . . Kills | -11 -10 -9 -8 -7 -7 -6 -5 -5 -5 -4 -4 -4 -3 -2 ------- Run | Yrd Mat Mat Mat Fac DSF Fac Fac DSF Gar Fac Was Fac Res Res Combat Hostiles Destroyed . | . . . . . . . . . . . . . . . Classes Destroyed 2 | . . . 2 . . . . . . . . . . . Builder 1 | . . . 1 . . . . . . . . . . . Tunneler 1 | . . . 1 . . . . . . . . . . . Best Kill Streak 1 | . . . 1 . . . . . . . . . . . Combat Bots Only . | . . . . . . . . . . . . . . . Max Kills in Single Turn 1 | . . . 1 . . . . . . . . . . . Gunslinging . | . . . . . . . . . . . . . . . Exploded . | . . . . . . . . . . . . . . . Melee . | . . . . . . . . . . . . . . . Uniques/NPCs Destroyed . | . . . . . . . . . . . . . . . Combat | -11 -10 -9 -8 -7 -7 -6 -5 -5 -5 -4 -4 -4 -3 -2 -------- Run | Yrd Mat Mat Mat Fac DSF Fac Fac DSF Gar Fac Was Fac Res Res Hostile Shots Fired 637 | . 29 30 13 . 6 36 . 8 13 28 3 28 5 438 Missed 255 | . 12 8 6 . 3 14 . 1 3 17 . 8 3 180 Hits 382 | . 17 22 7 . 3 22 . 7 10 11 3 20 2 258 Melee 3 | . . . . . . . . . . . 3 . . . Projectile 379 | . 17 22 7 . 3 22 . 7 10 11 . 20 2 258 Critical Strikes 26 | . . . . . . 2 . 3 . 3 3 1 . 14 Damage Taken 9328 | . 176 285 150 . 153 482 . 524 229 216 146 305 43 6619 Core 2993 | . 176 202 62 . 102 222 . 281 117 136 . 150 43 1502 Absorbed by Shields 19 | . . . . . . . . 19 . . . . . . Ignored by Resistances 20 | . . . . . . 20 . . . . . . . . Core Remaining (%) 72 | 100 29 49 88 . 85 73 . . 60 . . 75 96 . Volleys Fired 7 | . . . 7 . . . . . . . . . . . Largest 1 | . . . 1 . . . . . . . . . . . Hottest 23 | . . . 23 . . . . . . . . . . . Shots Fired 8 | . . . 7 . . . . . . . . 1 . . Gun 8 | . . . 7 . . . . . . . . 1 . . Cannon . | . . . . . . . . . . . . . . . Launcher . | . . . . . . . . . . . . . . . Special . | . . . . . . . . . . . . . . . Kinetic 7 | . . . 7 . . . . . . . . . . . Thermal 1 | . . . . . . . . . . . . 1 . . Explosive . | . . . . . . . . . . . . . . . Electromagnetic . | . . . . . . . . . . . . . . . Robot Hit Streak 4 | . . . 4 . . . . . . . . . . . Robot Miss Streak 2 | . . . 2 . . . . . . . . . . . Penetration Max . | . . . . . . . . . . . . . . . Secondary Targets . | . . . . . . . . . . . . . . . Shots Hit Robots 5 | . . . 5 . . . . . . . . . . . Core Hits 5 | . . . 1 . . . . . . . . 1 . 3 Critical Kills . | . . . . . . . . . . . . . . . Critical Parts Destroyed . | . . . . . . . . . . . . . . . Critical Strikes . | . . . . . . . . . . . . . . . Melee Attacks . | . . . . . . . . . . . . . . . Impact . | . . . . . . . . . . . . . . . Slashing . | . . . . . . . . . . . . . . . Piercing . | . . . . . . . . . . . . . . . Sneak Attacks . | . . . . . . . . . . . . . . . Combat Hostiles . | . . . . . . . . . . . . . . . Follow-up Attacks . | . . . . . . . . . . . . . . . Damage Inflicted 248 | . 17 . 103 . . 37 . . . . . 22 . 69 Guns 86 | . . . 86 . . . . . . . . . . . Cannons . | . . . . . . . . . . . . . . . Explosions . | . . . . . . . . . . . . . . . Melee . | . . . . . . . . . . . . . . . Ramming 162 | . 17 . 17 . . 37 . . . . . 22 . 69 Kinetic 86 | . . . 86 . . . . . . . . . . . Thermal . | . . . . . . . . . . . . . . . Explosive . | . . . . . . . . . . . . . . . Electromagnetic . | . . . . . . . . . . . . . . . Impact . | . . . . . . . . . . . . . . . Slashing . | . . . . . . . . . . . . . . . Piercing . | . . . . . . . . . . . . . . . Highest Corruption 7 | . . . . . . 1 . . . . 6 7 . 6 Average Corruption 3 | . . . . . . 1 . . . . 6 6 . 3 Corruption Purged . | . . . . . . . . . . . . . . . Corruption Blocked . | . . . . . . . . . . . . . . . Effects 3 | . . . . . . . . . . . 1 1 . 1 Message Errors 1 | . . . . . . . . . . . 1 . . . Energy Discharges 1 | . . . . . . . . . . . . . . 1 Misfires 1 | . . . . . . . . . . . . 1 . . Overload Shots . | . . . . . . . . . . . . . . . Overflow Damage . | . . . . . . . . . . . . . . . Projectiles . | . . . . . . . . . . . . . . . Explosions . | . . . . . . . . . . . . . . . Melee . | . . . . . . . . . . . . . . . Knockbacks . | . . . . . . . . . . . . . . . Impact . | . . . . . . . . . . . . . . . Kinetic . | . . . . . . . . . . . . . . . Secondary . | . . . . . . . . . . . . . . . Self-Inflicted Damage 81 | . 8 . 8 . . 24 . . . . . 10 . 31 Shots . | . . . . . . . . . . . . . . . Rammed 33 | . 4 . 4 . . 4 . . . . . 6 . 15 Targets Rammed 34 | . 4 . 5 . . 4 . . . . . 6 . 15 Kicked . | . . . . . . . . . . . . . . . Crushed 1 | . . . 1 . . . . . . . . . . . Highest Temperature . | . . . . . . . . . . . . . . . Average Temperature . | . . . . . . . . . . . . . . . Received Heat Transfer 959 | . 24 153 54 . . 180 . . 45 142 . 37 9 315 Siege Activations . | . . . . . . . . . . . . . . . Martial Activations . | . . . . . . . . . . . . . . . Shielding Activations . | . . . . . . . . . . . . . . . Robots Disrupted . | . . . . . . . . . . . . . . . Combat Hostiles . | . . . . . . . . . . . . . . . Robots Corrupted . | . . . . . . . . . . . . . . . Combat Hostiles . | . . . . . . . . . . . . . . . Parts Fried . | . . . . . . . . . . . . . . . Impact Corruptions . | . . . . . . . . . . . . . . . Robots Melted . | . . . . . . . . . . . . . . . Combat Hostiles . | . . . . . . . . . . . . . . . Parts Melted . | . . . . . . . . . . . . . . . Heat Transferred . | . . . . . . . . . . . . . . . Parts Sabotaged . | . . . . . . . . . . . . . . . Parts Stolen . | . . . . . . . . . . . . . . . Parts Stripped . | . . . . . . . . . . . . . . . Power Chain Reactions . | . . . . . . . . . . . . . . . Alert | -11 -10 -9 -8 -7 -7 -6 -5 -5 -5 -4 -4 -4 -3 -2 ------- Run | Yrd Mat Mat Mat Fac DSF Fac Fac DSF Gar Fac Was Fac Res Res Maximum Alert Level 1 | . . . . . . . . . . . . . . 1 Low Security (%) 96 | 100 100 100 100 100 100 100 100 100 100 100 100 100 100 82 Level 1 3 | . . . . . . . . . . . . . . 17 Level 2 . | . . . . . . . . . . . . . . . Level 3 . | . . . . . . . . . . . . . . . Level 4 . | . . . . . . . . . . . . . . . Level 5 . | . . . . . . . . . . . . . . . High Security . | . . . . . . . . . . . . . . . Max Security . | . . . . . . . . . . . . . . . Peak Influence 329 | . 15 20 20 . . 155 60 45 14 7 . 15 7 329 Initial 60 | . . 5 1 . . . 60 45 . 7 . . 7 2 Average 37 | . 1 11 3 . . 73 60 25 12 . . 2 3 93 Influence Increases 783 | . 15 19 25 . . 200 5 . 14 6 . 30 15 454 Destroy 0b10 Robot/NC 10 | . . . 10 . . . . . . . . . . . Successful Hack 68 | . . 19 . . . 5 5 . 14 6 . . . 19 Partial Spotted 30 | . . . 15 . . . . . . . . . 15 . Lose Combat Pursuer 675 | . 15 . . . . 195 . . . . . 30 . 435 Influence Decreases 479 | . . 30 29 . . 75 65 65 . 20 . 15 25 155 Entered New Map 116 | . . 10 3 . . . 65 20 . 7 . . 8 3 Time Decay 236 | . . 20 26 . . 75 . . . 6 . . 17 92 Lost Part 127 | . . . . . . . . 45 . 7 . 15 . 60 Squads Dispatched 15 | . . 1 2 . . 2 1 . . . . 1 . 8 Investigation 7 | . . . 1 . . . 1 . . . . 1 . 4 Extermination 2 | . . . . . . . . . . . . . . 2 Reinforcement 6 | . . 1 1 . . 2 . . . . . . . 2 Assault . | . . . . . . . . . . . . . . . Garrison . | . . . . . . . . . . . . . . . Intercept . | . . . . . . . . . . . . . . . Searches Triggered . | . . . . . . . . . . . . . . . Construction Impeded . | . . . . . . . . . . . . . . . Haulers Reinforced 2 | . . . . . . . . . . . . . . 2 Active Scanning Responses . | . . . . . . . . . . . . . . . Cargo Convoy Interrupts . | . . . . . . . . . . . . . . . Stealth | -11 -10 -9 -8 -7 -7 -6 -5 -5 -5 -4 -4 -4 -3 -2 --------- Run | Yrd Mat Mat Mat Fac DSF Fac Fac DSF Gar Fac Was Fac Res Res Distress Signals 6 | . 2 . . . . 2 . . . . . . 1 1 Communications Jammed . | . . . . . . . . . . . . . . . Distress Signals . | . . . . . . . . . . . . . . . Times Spotted 145 | . 11 10 9 . 1 22 . 1 1 5 5 12 6 62 Peak Tracking Total 30 | . 11 9 8 . 1 14 . 1 1 5 5 7 6 30 Tactical Retreats 15 | . 1 . . . . 4 . . . . . 1 . 9 Traps | -11 -10 -9 -8 -7 -7 -6 -5 -5 -5 -4 -4 -4 -3 -2 ------- Run | Yrd Mat Mat Mat Fac DSF Fac Fac DSF Gar Fac Was Fac Res Res Traps Triggered 7 | . . . 1 . 1 1 . 2 . 1 . . . 1 Indirectly . | . . . . . . . . . . . . . . . Trap Hack Attempts . | . . . . . . . . . . . . . . . Triggered . | . . . . . . . . . . . . . . . Disarmed . | . . . . . . . . . . . . . . . Reprogrammed . | . . . . . . . . . . . . . . . Reused . | . . . . . . . . . . . . . . . Traps Extracted . | . . . . . . . . . . . . . . . Installed . | . . . . . . . . . . . . . . . Triggered . | . . . . . . . . . . . . . . . Machines | -11 -10 -9 -8 -7 -7 -6 -5 -5 -5 -4 -4 -4 -3 -2 ---------- Run | Yrd Mat Mat Mat Fac DSF Fac Fac DSF Gar Fac Was Fac Res Res Machines Disabled . | . . . . . . . . . . . . . . . Max in Single Turn . | . . . . . . . . . . . . . . . Machines Repaired . | . . . . . . . . . . . . . . . Machines Dismantled . | . . . . . . . . . . . . . . . Machines Sabotaged . | . . . . . . . . . . . . . . . Overloaded Fab Kills . | . . . . . . . . . . . . . . . Hacking | -11 -10 -9 -8 -7 -7 -6 -5 -5 -5 -4 -4 -4 -3 -2 --------- Run | Yrd Mat Mat Mat Fac DSF Fac Fac DSF Gar Fac Was Fac Res Res Machines Accessed 16 | . . 4 . 1 . 2 1 . 1 1 . 1 1 4 Terminals 15 | . . 4 . 1 . 2 1 . 1 . . 1 1 4 Fabricators . | . . . . . . . . . . . . . . . Repair Stations 1 | . . . . . . . . . . 1 . . . . Recycling Units . | . . . . . . . . . . . . . . . Scanalyzers . | . . . . . . . . . . . . . . . Garrison Access . | . . . . . . . . . . . . . . . Total Hacks 40 | . . 11 . 1 . 3 3 . 1 1 . 3 1 16 Successful 11 | . . 4 . 1 . 1 1 . 1 1 . . . 2 Failed 29 | . . 7 . . . 2 2 . . . . 3 1 14 Catastrophic 6 | . . 1 . . . . . . . . . . 1 4 Database Lockouts . | . . . . . . . . . . . . . . . Manual 23 | . . 8 . . . 2 . . . . . 3 1 9 Terminals 39 | . . 11 . 1 . 3 3 . 1 . . 3 1 16 Fabricators . | . . . . . . . . . . . . . . . Repair Stations 1 | . . . . . . . . . . 1 . . . . Recycling Units . | . . . . . . . . . . . . . . . Scanalyzers . | . . . . . . . . . . . . . . . Garrison Access . | . . . . . . . . . . . . . . . Terminal Hacks 9 | . . 3 . 1 . 1 1 . 1 . . . . 2 Robot Analysis 1 | . . 1 . . . . . . . . . . . . Open DSF 3 | . . . . 1 . 1 1 . . . . . . . Emergency Access Points 1 | . . . . . . . . . 1 . . . . . Locate Traps 1 | . . 1 . . . . . . . . . . . . Zone Layout 3 | . . 1 . . . . . . . . . . . 2 Fabricator Hacks . | . . . . . . . . . . . . . . . Repair Station Hacks 1 | . . . . . . . . . . 1 . . . . Refit 1 | . . . . . . . . . . 1 . . . . Recycling Unit Hacks . | . . . . . . . . . . . . . . . Scanalyzer . | . . . . . . . . . . . . . . . Garrison Access Hacks . | . . . . . . . . . . . . . . . Unauthorized Hacks 1 | . . 1 . . . . . . . . . . . . Terminals 1 | . . 1 . . . . . . . . . . . . Botnet 1 | . . 1 . . . . . . . . . . . . Fabricators . | . . . . . . . . . . . . . . . Repair Stations . | . . . . . . . . . . . . . . . Recycling Units . | . . . . . . . . . . . . . . . Scanalyzers . | . . . . . . . . . . . . . . . Garrison Access . | . . . . . . . . . . . . . . . Data Cores Recovered . | . . . . . . . . . . . . . . . Used . | . . . . . . . . . . . . . . . Hacking Detections 15 | . . 4 . 1 . 1 1 . 1 1 . 1 1 4 Full Trace Events 7 | . . 1 . . . . 1 . . . . 1 . 4 Feedback Events 1 | . . . . . . . . . . . . . . 1 Corruption 1 | . . . . . . . . . . . . . . 1 Feedback Blocked . | . . . . . . . . . . . . . . . Robot Schematics Acquired . | . . . . . . . . . . . . . . . Robots Built . | . . . . . . . . . . . . . . . Authchips . | . . . . . . . . . . . . . . . Time . | . . . . . . . . . . . . . . . Total Robot Build Rating . | . . . . . . . . . . . . . . . Part Schematics Acquired . | . . . . . . . . . . . . . . . Parts Built . | . . . . . . . . . . . . . . . Authchips . | . . . . . . . . . . . . . . . Time . | . . . . . . . . . . . . . . . Total Part Build Rating . | . . . . . . . . . . . . . . . Part Studies Acquired . | . . . . . . . . . . . . . . . Parts Repaired . | . . . . . . . . . . . . . . . Time . | . . . . . . . . . . . . . . . Parts Recycled . | . . . . . . . . . . . . . . . Recycled Matter . | . . . . . . . . . . . . . . . Retrieved Matter . | . . . . . . . . . . . . . . . Retrieved Components . | . . . . . . . . . . . . . . . Parts Scanalyzed . | . . . . . . . . . . . . . . . Part Schematics Acquired . | . . . . . . . . . . . . . . . Parts Damaged . | . . . . . . . . . . . . . . . Bothacking | -11 -10 -9 -8 -7 -7 -6 -5 -5 -5 -4 -4 -4 -3 -2 ------------ Run | Yrd Mat Mat Mat Fac DSF Fac Fac DSF Gar Fac Was Fac Res Res Used RIF Installer . | . . . . . . . . . . . . . . . Robots Hacked . | . . . . . . . . . . . . . . . Non-combat . | . . . . . . . . . . . . . . . Combat . | . . . . . . . . . . . . . . . Robot Hacks Applied . | . . . . . . . . . . . . . . . Relay Couplers Released . | . . . . . . . . . . . . . . . Fabnet Peak Effective % . | . . . . . . . . . . . . . . . Robots Rewired . | . . . . . . . . . . . . . . . Allies Hacked . | . . . . . . . . . . . . . . . Hacks Repelled . | . . . . . . . . . . . . . . . Allies | -11 -10 -9 -8 -7 -7 -6 -5 -5 -5 -4 -4 -4 -3 -2 -------- Run | Yrd Mat Mat Mat Fac DSF Fac Fac DSF Gar Fac Was Fac Res Res Total Allies 1 | . . . . . . . . . . . 1 . . . Largest Group 1 | . . . . . . . . . . . 1 . . . Highest-Rated Group 46 | . . . . . . . . . . . 46 . . . Highest-Rated Ally 46 | . . . . . . . . . . . 46 . . . Total Orders . | . . . . . . . . . . . . . . . Ally Attacks 4 | . . . . . . . . . . . 4 . . . Total Damage 118 | . . . . . . . . . . . 118 . . . Kills . | . . . . . . . . . . . . . . . Allies Corrupted . | . . . . . . . . . . . . . . . Allies Melted . | . . . . . . . . . . . . . . . Intel | -11 -10 -9 -8 -7 -7 -6 -5 -5 -5 -4 -4 -4 -3 -2 ------- Run | Yrd Mat Mat Mat Fac DSF Fac Fac DSF Gar Fac Was Fac Res Res Active Infowar (turns) 254 | . . . 56 2 39 157 . . . . . . . . Structural 254 | . . . 56 2 39 157 . . . . . . . . Robot Analysis Total 1 | . . 1 . . . . . . . . . . . . Derelict Logs Recovered . | . . . . . . . . . . . . . . . Drone Launches . | . . . . . . . . . . . . . . . Drone Recoveries . | . . . . . . . . . . . . . . . Exploration | -11 -10 -9 -8 -7 -7 -6 -5 -5 -5 -4 -4 -4 -3 -2 ------------- Run | Yrd Mat Mat Mat Fac DSF Fac Fac DSF Gar Fac Was Fac Res Res Turns Passed 1017 | 9 55 44 120 2 39 189 2 39 86 57 45 49 56 225 Spaces Moved 1846 | 18 101 76 185 3 77 348 3 70 173 110 81 85 108 408 Core 1840 | 18 101 72 185 3 77 347 3 69 173 110 81 85 108 408 Treads 4 | . . 4 . . . . . . . . . . . . Legs 2 | . . . . . . 1 . 1 . . . . . . Wheels . | . . . . . . . . . . . . . . . Hover . | . . . . . . . . . . . . . . . Flight . | . . . . . . . . . . . . . . . Fastest Speed 50 | 50 50 50 50 50 50 50 50 50 50 50 50 50 50 50 Average Speed 50 | 50 50 55 50 50 50 50 50 51 50 50 50 50 50 50 Slowest Speed 160 | 50 50 160 50 50 50 120 50 120 50 50 50 50 50 50 Overloaded Moves . | . . . . . . . . . . . . . . . Propulsion Burnouts . | . . . . . . . . . . . . . . . Robots Hopped . | . . . . . . . . . . . . . . . Potential Cave-ins . | . . . . . . . . . . . . . . . Cave-ins Triggered . | . . . . . . . . . . . . . . . Exploration Rate (%) 31 | 3 30 15 27 . 88 17 . 88 33 3 74 3 5 23 Regions Visited 14 Branch Regions . Pre-discovered Areas . | . . . . . . . . . . . . . . . Known Exits Taken 4 | . . . . 1 . . 1 . . . . 1 1 . Unknown Exits Taken 5 | 1 1 1 1 . . 1 . . . . . . . . Scrap Searched . | . . . . . . . . . . . . . . . Spaces Dug . | . . . . . . . . . . . . . . . Terrain Destroyed . | . . . . . . . . . . . . . . . Melee . | . . . . . . . . . . . . . . . Projectile . | . . . . . . . . . . . . . . . AOE . | . . . . . . . . . . . . . . . Terrain Rammed 1 | . . . . . . 1 . . . . . . . . Walls Destroyed . | . . . . . . . . . . . . . . . Machines Disabled . | . . . . . . . . . . . . . . . Actions | -11 -10 -9 -8 -7 -7 -6 -5 -5 -5 -4 -4 -4 -3 -2 --------- Run | Yrd Mat Mat Mat Fac DSF Fac Fac DSF Gar Fac Was Fac Res Res Total 1899 | 17 104 76 202 2 76 358 2 72 171 111 83 90 108 427 Wait . | . . . . . . . . . . . . . . . Move 1832 | 17 100 75 184 2 76 347 2 69 171 110 80 84 107 408 Hop . | . . . . . . . . . . . . . . . Pick Up 1 | . . . 1 . . . . . . . . . . . Fast Attach 20 | . . 1 3 . . 6 . 1 . 1 3 . 1 4 Attach 1 | . . . 1 . . . . . . . . . . . Detach 1 | . . . 1 . . . . . . . . . . . Swap . | . . . . . . . . . . . . . . . Drop . | . . . . . . . . . . . . . . . Fire 7 | . . . 7 . . . . . . . . . . . Melee . | . . . . . . . . . . . . . . . Ram 33 | . 4 . 3 . . 5 . . . . . 6 . 15 Kick . | . . . . . . . . . . . . . . . Crush 2 | . . . 2 . . . . . . . . . . . Escape Stasis 2 | . . . . . . . . 2 . . . . . . Rewire . | . . . . . . . . . . . . . . . Trap . | . . . . . . . . . . . . . . . Miscellaneous . | . . . . . . . . . . . . . . . Route ------- -11/Scrapyard -10/Materials -9/Materials -8/Materials -7/Factory -7/DSF -6/Factory -5/Factory -5/DSF -5/Garrison (discovered 2 exits: *Fac x2) -4/Factory -4/Waste -4/Factory -3/Research -2/Research History --------- Turn | Location | Event 4 | -11/Scrapyard | Discovered new exit (range 13) 10 | -11/Scrapyard | Entered Materials 57 | -10/Materials | Discovered new exit (range 16) 60 | -10/Materials | Core integrity fell below 50% 65 | -10/Materials | Entered another Materials area 65 | -9/Materials | Evolved 2 slots: Propulsion x1, Utility x1 105 | -9/Materials | Core integrity fell below 50% 106 | -9/Materials | Discovered new exit (range 7) 109 | -9/Materials | Entered another Materials area 109 | -8/Materials | Evolved 2 slots: Propulsion x1, Utility x1 224 | -8/Materials | Discovered new exit (range 10) 229 | -8/Materials | Entered Factory 229 | -7/Factory | Evolved 2 slots: Propulsion x2 231 | -7/Factory | Identified exit to DSF 231 | -7/Factory | Entered DSF 255 | -7/DSF | Additional patrols routed to DSF 262 | -7/DSF | Discovered new exit (range 15) 270 | -7/DSF | Entered Factory 270 | -6/Factory | Evolved 2 slots: Propulsion x1, Utility x1 309 | -6/Factory | Build established: Mutant 452 | -6/Factory | Discovered new exit (range 14) 459 | -6/Factory | Entered another Factory area 459 | -5/Factory | Evolved 2 slots: Propulsion x1, Utility x1 461 | -5/Factory | Identified exit to DSF 461 | -5/Factory | Entered DSF 492 | -5/DSF | Discovered new exit (range 15) 496 | -5/DSF | Additional patrols routed to DSF 500 | -5/DSF | Entered Garrison 521 | -5/Garrison | Lost 5 parts (3n2u) 539 | -5/Garrison | Discovered new exit (range 15) 546 | -5/Garrison | Attempted to access garrison exit controls, blocked by remote lockdown 582 | -5/Garrison | Discovered new exit (range 10) 586 | -5/Garrison | Entered Factory 586 | -4/Factory | Evolved 2 slots: Utility x2 643 | -4/Factory | Sucked down chute 643 | -4/Factory | Entered Waste 644 | -4/Waste | Met a frightened Derelict 651 | -4/Waste | Spotted C-40 Crusher 658 | -4/Waste | EMP discharged 663 | -4/Waste | Spotted C-40 Crusher 663 | -4/Waste | Crushed by Compactor (1 part destroyed) 674 | -4/Waste | Spotted C-40 Crusher 676 | -4/Waste | Spotted C-40 Crusher 676 | -4/Waste | Spotted C-40 Crusher 682 | -4/Waste | Discovered new exit (range 14) 688 | -4/Waste | Identified exit to Factory 688 | -4/Waste | Entered Factory 712 | -4/Factory | Lost 4 parts (1p3n) 734 | -4/Factory | Discovered new exit (range 5) 736 | -4/Factory | Identified exit to Research 737 | -4/Factory | Entered Research 737 | -3/Research | Evolved 2 slots: Propulsion x2 757 | -3/Research | Lost 4 parts (2n2w) 785 | -3/Research | Discovered new exit (range 15) 792 | -3/Research | Identified exit to Research 793 | -3/Research | Entered another Research area 793 | -2/Research | Evolved 2 slots: Propulsion x2 853 | -2/Research | Spotted B-90 Cyclops 873 | -2/Research | Core integrity fell below 50% 915 | -2/Research | Spotted B-90 Cyclops 991 | -2/Research | Core integrity fell below 20% 1018 | -2/Research | Destroyed by H-81 Overseer with Heavy Linear Accelerator Last Messages --------------- 01000_ Destabilizing: Short circuit. 01001_ Slammed into K-01 Serf. 01004_ Destabilizing: Core damaged (-29). 01007_ Slammed into K-01 Serf. 01007_ Destabilizing: System corrupted (+1). 01010_ Penetrated by Slug. 01014_ ALERT: Potential suspicious activity detected, Programmers report to Research Zone 6B. 01014_ Slug penetrates Wall. 01014_ Penetrated by Slug. 01014_ K-01 Serf destroyed. 01014_ Slug penetrates Wall. 01016_ R-10 Processor collects Sml. Matter Pod. 01017_ Penetrated by Slug. 01017_ Broken Med. Armored Exoskeleton destroyed. 01017_ Med. Armored Exoskeleton destroyed. 01017_ Broken Adv. Signal Interpreter destroyed. 01017_ Critical hit (Blast). 01017_ Knocked back. 01017_ Penetrated by Slug. Map ----- +----------------------------------------------------+ | ?????????????????????????????????????????????????? | | ?????????????????????????????????????????????????? | | ?????????????????????????????????????????????????? | | ?????????????????????????????????????????????????? | | ?????????????????????????????????????????????????? | | ?????????????????????????????????????????????????? | | ?????????????????????????????????????????????????? | | ?????????????????????????????????????????????????? | | ?????????????????????????????????????????????????? | | ?????????????????????????????????????????????????? | | ?????????????????????????????????????????????????? | | ???????????????????? ?????????????????????????? | | ???????????????????# ?????????????????????????? | | ???????????????????+ ?????????????????????????? | | ???????????????????# #????????????????????????? | | ???????????????????# #????????????????????????? | | ???????????????????# #????????????????????????? | | ???????????????????# #????????????????????????? | | ???????????????????# ###+####?????????????????? | | ????????????????? # #?????????????????? | | ??????????????????k/ #?????????????????? | | ???????????????????# #?????????????????? | | ???????????????????# """ #?????????????????? | | ???????????????????# ""F"" #?????????????????? | | ???????????????????# "" "" #?????????????????? | | ???????????????????# h %@ !### ##????????????? | | ???????????????????# #??????????? | | ???????????? k ; R #??????????? | | ???????????# # h H +??????????? | | ???????????###+##??# ### #??????????? | | ?????????????? ????# #?########### #??????????? | | ?????????????? ????# # #???????????????? | | ?????????????? ????# # #???????????????? | | ?????????????? ????# + #???????????????? | | ???????#?##### ????# s # """ #???????????????? | | ???????# # #???#= # """ ????????????????? | | ???????# # #???# #? """ ????????????????? | | ???????#!]! # #???# #? ?????????????????? | | ???????#!]! # #??## #?? ?????????????????? | | ???????#]! # #??# #?? ????????????????? | | ???????? # #??#T #???#####????????????????? | | ????????? # #??## #????????????????????????? | | ??????????#+## ##### #????????????????????????? | | ??????????# #????????????????????????? | | ??????????# #########+#+#????????????????????????? | | ??????????# #???????" ??????????????????????????? | | ????????### ###?????" ?????????????????????????? | | ????????# #?????" ????????????????????????? | | ?????#### #???? ????????????????????????? | | ?????# #????? ???????????????????????? | +----------------------------------------------------+ Best States ------------- Heat Dissipation 49 Energy Generation 9 Energy Capacity 100 Matter Stores 283 Matter Capacity 300 Sight Range 16 Terrain Scan Density 210 Resistance: TH 20 Evasion (%) 62 Recoil Reduction 2 Item Schematics ----------------- None Robot Schematics ------------------ None Fabricated ------------ Nothing Repaired ---------- Nothing Studied --------- None Alien Tech Used ----------------- None Achievements -------------- None Challenges ------------ None Game ------ Seed ShiftChaosRay Manual? 0 Play Time 00:35:54 Cumulative 208.5 hours Start 2026.09.05 @ 17:45:24 End 2026.09.05 @ 23:19:17 Sessions 3 Manual Loads 0 Difficulty Rogue Special Mode None Game No. 77 Rogue 77 Adventurer 0 Explorer 0 Win Type - Total 10 Types 7/0/2/1/0/0/0/0/0/0 Lore% 68 Gallery% 65 Achievement% 58 Wizard Run 0 Options --------- Layout 0 ASCII 0 Keyboard 0 Movement Arrows Keybinds 0 Fullscreen 2 Font 18/Terminus Map View 76x50 Zoom Use 0% Tactical HUD 1 Map Filters NONE Filters NONE Steam 1 RUN: ddcbdce3-f045-4f0b-93a7-04926a59fc3e